lending/lending_fUSD_20240110
["ID","MTS","AMOUNT","RATE_DAILY","PERIOD"]
[311065789,1704891198623,-715.45,0.00034794,2]
[311065790,1704891198634,-731.09,0.00034794,2]
[311065791,1704891198898,-500.0,0.00034794,2]
[311065792,1704891198909,-767.17,0.00034794,2]
[311065793,1704891198920,-1110.47,0.00034794,2]
[311065794,1704891198931,-71776.252318,0.00034794,2]
[311065795,1704891198941,-500.0,0.00034794,2]
[311065796,1704891198951,-914.12,0.00034794,2]
[311065797,1704891198961,-843.45,0.00034794,2]
[311065798,1704891198972,-540.71,0.00034794,2]
[311065799,1704891198982,-833.64,0.00034794,2]
[311065800,1704891198992,-919.36,0.00034794,2]
[311065801,1704891199003,-500.0,0.00034794,2]
[311065802,1704891199012,-780.81,0.00034794,4]
[311065803,1704891199033,-673.2,0.00034794,2]
[311065804,1704891199044,-549.17,0.00034794,2]
[311065805,1704891199054,-592.78,0.00034794,10]
[311065806,1704891199064,-929.48,0.00034794,2]
[311065807,1704891199074,-500.0,0.00034794,2]
[311065808,1704891199084,-783.37,0.00034794,2]
[311065809,1704891199094,-500.0,0.00034794,2]
[311065810,1704891199104,-526.95,0.00034794,2]
[311065811,1704891199115,-796.39,0.00034794,2]
[311065812,1704891199125,-718.34,0.00034794,2]
[311065813,1704891199134,-500.0,0.00034794,2]
[311065814,1704891199145,-516.97,0.00034794,2]
[311065815,1704891199156,-603.93,0.00034794,2]
[311065816,1704891199166,-953.36,0.00034794,2]
[311065817,1704891199176,-595.36,0.00034794,2]
[311065818,1704891199187,-999.87,0.00034794,2]
[311065819,1704891199197,-799.61,0.00034794,2]
[311065820,1704891199208,-500.0,0.00034794,2]
[311065821,1704891199221,-545.66,0.00034794,2]
[311065822,1704891199232,-911.61,0.00034794,2]
[311065823,1704891199242,-608.6,0.00034794,2]
[311065824,1704891199253,-679.43,0.00034794,2]
[311065825,1704891199264,-500.0,0.00034794,2]
[311065826,1704891199274,-460.55700146,0.00034794,2]
[311065827,1704891199284,-528.0,0.00034794,2]
[311065828,1704891199294,-717.61,0.00034794,2]
[311065829,1704891199304,-668.27,0.00034794,2]
[311065830,1704891199315,-500.0,0.00034794,2]
[311065831,1704891199324,-922.19,0.00034794,2]
[311065832,1704891199335,-500.0,0.00034794,2]
[311065833,1704891199345,-500.0,0.00034794,2]
[311065834,1704891199355,-500.0,0.00034794,2]
[311065835,1704891199365,-500.0,0.00034794,2]
[311065836,1704891199375,-1150.48,0.00034794,2]
[311065837,1704891199385,-856.23,0.00034794,2]
[311065838,1704891199395,-943.83,0.00034794,2]
[311065839,1704891199405,-677.16,0.00034794,2]
[311065840,1704891199415,-1357.7,0.00034794,2]
[311065841,1704891199425,-944.54,0.00034794,2]
[311065842,1704891199436,-819.95,0.00034794,2]
[311065843,1704891199446,-613.7,0.00034794,2]
[311065844,1704891199457,-845.23,0.00034794,2]
[311065845,1704891199469,-1144.78,0.00034794,2]
[311065846,1704891199478,-500.0,0.00034794,2]
[311065847,1704891199488,-572.57,0.00034794,2]
[311065848,1704891199498,-523.04,0.00034794,2]
[311065849,1704891199508,-981.88,0.00034794,2]
[311065850,1704891199517,-500.0,0.00034794,2]
[311065851,1704891199526,-500.0,0.00034794,2]
[311065852,1704891199536,-1009.3,0.00034794,2]
[311065853,1704891199546,-804.49,0.00034794,2]
[311065854,1704891199555,-500.0,0.00034794,2]
[311065855,1704891199565,-626.97,0.00034794,2]
[311065856,1704891199575,-679.35,0.00034794,2]
[311065857,1704891199585,-688.65,0.00034794,2]
[311065858,1704891199596,-1228.41,0.00034794,2]
[311065859,1704891199606,-835.39,0.00034794,2]
[311065860,1704891199617,-370.9951791,0.00034794,2]
[311065861,1704891199627,-567.03,0.00034794,2]
[311065862,1704891199638,-664.11,0.00034794,2]
[311065863,1704891199649,-699.18,0.00034794,2]
[311065864,1704891199659,-265.944976,0.00034794,2]
[311065865,1704891199668,-574.64,0.00034794,2]
[311065866,1704891199678,-729.83,0.00034794,2]
[311065867,1704891199687,-847.62,0.00034794,2]
[311065868,1704891199696,-1277.67,0.00034794,2]
[311065869,1704891199706,-755.08,0.00034794,2]
[311065870,1704891199717,-1281.13,0.00034794,2]
[311065871,1704891199727,-1050.74,0.00034794,2]
[311065872,1704891199737,-1129.59,0.00034794,2]
[311065873,1704891199746,-1299.52,0.00034794,2]
[311065874,1704891199756,-667.72,0.00034794,2]
[311065875,1704891199766,-500.0,0.00034794,2]
[311065876,1704891199776,-665.14,0.00034794,2]
[311065877,1704891199786,-1462.15,0.00034794,2]
[311065878,1704891199795,-883.1,0.00034794,2]
[311065879,1704891199806,-736.72,0.00034794,2]
[311065880,1704891199815,-932.0,0.00034794,2]
[311065881,1704891199825,-933.85,0.00034794,2]
[311065882,1704891199835,-715.55,0.00034794,2]
[311065883,1704891199844,-500.0,0.00034794,2]
[311065884,1704891199855,-616.84,0.00034794,2]
[311065885,1704891199864,-1106.31,0.00034794,2]
[311065886,1704891199874,-989.02,0.00034794,2]
[311065887,1704891199884,-500.0,0.00034794,2]
[311065888,1704891199894,-202.57575322,0.00034794,2]
[311065889,1704891199903,-1108.12,0.00034794,2]
[311065890,1704891199913,-1195.8,0.00034794,2]
[311065891,1704891199922,-1806.82,0.00034794,2]
[311065892,1704891199932,-915.35,0.00034794,2]
[311065893,1704891199941,-1387.71,0.00034794,2]
[311065894,1704891199951,-778.7,0.00034794,2]
[311065895,1704891199960,-1503.57,0.00034794,2]
[311065896,1704891199972,-1262.12,0.00034794,2]
[311065897,1704891199982,-556.89,0.00034794,2]
[311065898,1704891199991,-728.24,0.00034794,2]
[311065899,1704891200000,-749.59,0.00034794,2]
[311065900,1704891200010,-968.99,0.00034794,2]
[311065901,1704891200020,-500.0,0.00034794,2]
[311065902,1704891200030,-1148.53,0.00034794,2]
[311065903,1704891200040,-1486.97,0.00034794,2]
[311065904,1704891200049,-1273.18,0.00034794,2]
[311065905,1704891200059,-500.0,0.00034794,2]
[311065906,1704891200069,-1334.19,0.00034794,2]
[311065907,1704891200079,-810.04,0.00034794,2]
[311065908,1704891200090,-945.46,0.00034794,2]
[311065909,1704891200100,-884.9,0.00034794,2]
[311065910,1704891200110,-566.84,0.00034794,2]
[311065911,1704891200119,-500.0,0.00034794,2]
[311065912,1704891200130,-425.88112884,0.00034794,2]
[311065913,1704891200140,-659.65,0.00034794,2]
[311065914,1704891200151,-1698.48,0.00034794,2]
[311065915,1704891200161,-1658.69,0.00034794,2]
[311065916,1704891200170,-1894.62,0.00034794,2]
[311065917,1704891200180,-530.43,0.00034794,2]
[311065918,1704891200190,-648.28,0.00034794,2]
[311065919,1704891200200,-635.25,0.00034794,2]
[311065920,1704891200210,-716.26,0.00034794,2]
[311065921,1704891200222,-500.0,0.00034794,2]
[311065922,1704891200232,-1075.0,0.00034794,2]
[311065923,1704891200242,-659.2,0.00034794,2]
[311065924,1704891200252,-912.69,0.00034794,2]
[311065925,1704891200262,-994.89,0.00034794,2]
[311065926,1704891200273,-536.25,0.00034794,2]
[311065927,1704891200283,-535.04,0.00034794,2]
[311065928,1704891200294,-500.0,0.00034794,2]
[311065929,1704891200304,-763.92,0.00034794,2]
[311065930,1704891200314,-1507.5,0.00034794,2]
[311065931,1704891200325,-1352.86,0.00034794,2]
[311065932,1704891200335,-763.85,0.00034794,2]
[311065933,1704891200346,-500.0,0.00034794,2]
[311065934,1704891200356,-1058.85,0.00034794,2]
[311065935,1704891200367,-592.06,0.00034794,2]
[311065936,1704891200378,-1144.7,0.00034794,2]
[311065937,1704891200389,-500.0,0.00034794,2]
[311065938,1704891200399,-500.0,0.00034794,2]
[311065939,1704891200409,-960.45,0.00034794,2]
[311065940,1704891200419,-1268.39,0.00034794,2]
[311065941,1704891200431,-1187.57,0.00034794,2]
[311065942,1704891200441,-1176.82,0.00034794,2]
[311065943,1704891200451,-982.41,0.00034794,2]
[311065944,1704891200461,-500.0,0.00034794,2]
[311065945,1704891200472,-1591.28,0.00034794,2]
[311065946,1704891200482,-982.23,0.00034794,2]
[311065947,1704891200492,-960.81,0.00034794,2]
[311065948,1704891200502,-1435.01,0.00034794,2]
[311065949,1704891200513,-1207.08,0.00034794,2]
[311065950,1704891200523,-1012.64,0.00034794,2]
[311065951,1704891200533,-1395.58,0.00034794,2]
[311065952,1704891200544,-771.19,0.00034794,2]
[311065953,1704891200555,-1128.18,0.00034794,2]
[311065954,1704891200565,-1055.12,0.00034794,2]
[311065955,1704891200576,-524.56,0.00034794,2]
[311065956,1704891200585,-500.0,0.00034794,2]
[311065957,1704891200595,-620.01,0.00034794,2]
[311065958,1704891200605,-835.1,0.00034794,2]
[311065959,1704891200615,-1511.92,0.00034794,2]
[311065960,1704891200625,-1179.08,0.00034794,2]
[311065961,1704891200635,-1185.27,0.00034794,2]
[311065962,1704891200645,-1387.63,0.00034794,2]
[311065963,1704891200655,-904.42,0.00034794,2]
[311065964,1704891200665,-500.0,0.00034794,2]
[311065965,1704891200675,-1196.53,0.00034794,2]
[311065966,1704891200685,-525.95,0.00034794,2]
[311065967,1704891200695,-1787.03,0.00034794,2]
[311065968,1704891200705,-674.1,0.00034794,2]
[311065969,1704891200716,-755.38,0.00034794,2]
[311065970,1704891200726,-1077.63,0.00034794,2]
[311065971,1704891200736,-500.0,0.00034794,2]
[311065972,1704891200746,-581.62,0.00034794,2]
[311065973,1704891200757,-1024.85,0.00034794,2]
[311065974,1704891200767,-1257.2,0.00034794,2]
[311065975,1704891200777,-836.69,0.00034794,2]
[311065976,1704891200787,-525.09,0.00034794,2]
[311065977,1704891200798,-782.38,0.00034794,2]
[311065978,1704891200808,-306.82264857,0.00034794,2]
[311065979,1704891200817,-1749.35,0.00034794,2]
[311065980,1704891200828,-1000.33,0.00034794,2]
[311065981,1704891200838,-604.42,0.00034794,2]
[311065982,1704891200848,-765.38,0.00034794,2]
[311065983,1704891200887,-878.75,0.00034794,2]
[311065984,1704891200906,-679.72,0.00034794,2]
[311065985,1704891200930,-1881.36,0.00034794,2]
[311065986,1704891200953,-631.79,0.00034794,2]
[311065987,1704891200973,-500.0,0.00034794,2]
[311065988,1704891200994,-1166.65,0.00034794,2]
[311065989,1704891201016,-756.6,0.00034794,2]
[311065990,1704891201038,-2844.34,0.00034794,2]
[311065991,1704891201060,-641.96,0.00034794,2]
[311065992,1704891201082,-1044.01,0.00034794,2]
[311065993,1704891201101,-500.0,0.00034794,2]
[311065994,1704891201120,-1332.76,0.00034794,2]
[311065995,1704891201135,-1244.23,0.00034794,2]
[311065996,1704891201152,-729.63,0.00034794,2]
[311065997,1704891201184,-757.76,0.00034794,2]
[311065998,1704891201215,-500.0,0.00034794,2]
[311065999,1704891201244,-500.0,0.00034794,2]
[311066000,1704891201274,-1127.84,0.00034794,2]
[311066001,1704891201305,-1154.12,0.00034794,2]
[311066002,1704891201323,-551.43,0.00034794,2]
[311066003,1704891201340,-1044.13,0.00034794,2]
[311066004,1704891201357,-500.0,0.00034794,2]
[311066005,1704891201377,-1354.13,0.00034794,2]
[311066006,1704891201397,-7071.622806,0.00034794,2]
[311066007,1704891201417,-638.51,0.00034794,2]
[311066008,1704891201434,-862.28,0.00034794,2]
[311066009,1704891201452,-1181.63,0.00034794,2]
[311066010,1704891201470,-757.94,0.00034794,2]
[311066011,1704891201487,-1015.59,0.00034794,2]
[311066012,1704891201504,-823.4,0.00034794,2]
[311066013,1704891201522,-848.07,0.00034794,2]
[311066014,1704891201542,-783.14,0.00034794,2]
[311066015,1704891201559,-500.0,0.00034794,2]
[311066016,1704891201576,-1634.17,0.00034794,2]
[311066017,1704891201592,-892.34,0.00034794,2]
[311066018,1704891201608,-500.0,0.00034794,2]
[311066019,1704891201624,-1731.94,0.00034794,2]
[311066020,1704891201640,-1300.74,0.00034794,2]
[311066021,1704891201658,-1118.35,0.00034794,2]
[311066022,1704891201677,-821.71,0.00034794,2]
[311066023,1704891201694,-1097.53,0.00034794,2]
[311066024,1704891201711,-1115.5,0.00034794,2]
[311066025,1704891201733,-799.47,0.00034794,2]
[311066026,1704891201750,-500.0,0.00034794,2]
[311066027,1704891201768,-1438.57,0.00034794,2]
[311066028,1704891201785,-1466.84,0.00034794,2]
[311066029,1704891201804,-652.51,0.00034794,2]
[311066030,1704891201823,-1106.08,0.00034794,2]
[311066031,1704891201840,-1166.35,0.00034794,2]
[311066032,1704891201857,-1804.0,0.00034794,2]
[311066033,1704891201874,-1196.42,0.00034794,2]
[311066034,1704891201890,-1134.06,0.00034794,2]
[311066035,1704891201904,-545.73,0.00034794,2]
[311066036,1704891201918,-848.12,0.00034794,2]
[311066037,1704891201933,-1566.38,0.00034794,2]
[311066038,1704891201949,-714.75,0.00034794,2]
[311066039,1704891201964,-907.54,0.00034794,2]
[311066040,1704891201983,-556.57,0.00034794,2]
[311066041,1704891201999,-924.42,0.00034794,2]
[311066042,1704891202014,-500.0,0.00034794,2]
[311066043,1704891202029,-2743.08,0.00034794,2]
[311066044,1704891202044,-193.59325421,0.00034794,2]
[311066045,1704891202059,-500.0,0.00034794,2]
[311066046,1704891202074,-1841.24,0.00034794,2]
[311066047,1704891202088,-1407.91,0.00034794,2]
[311066048,1704891202103,-1648.35,0.00034794,2]
[311066049,1704891202119,-546.87,0.00034794,2]
[311066050,1704891202134,-574.07,0.00034794,2]
[311066051,1704891202150,-1615.48,0.00034794,2]
[311066052,1704891202165,-997.75,0.00034794,2]
[311066053,1704891202180,-555.68,0.00034794,2]
[311066054,1704891202196,-627.59,0.00034794,2]
[311066055,1704891202210,-783.23,0.00034794,2]
[311066056,1704891202227,-1687.92,0.00034794,2]
[311066057,1704891202241,-1436.16,0.00034794,2]
[311066058,1704891202257,-893.83,0.00034794,2]
[311066059,1704891202273,-608.29,0.00034794,2]
[311066060,1704891202289,-1132.03,0.00034794,2]
[311066061,1704891202305,-1380.57,0.00034794,2]
[311066062,1704891202321,-933.87,0.00034794,2]
[311066063,1704891202337,-500.0,0.00034794,2]
[311066064,1704891202355,-995.9,0.00034794,2]
[311066065,1704891202370,-957.42,0.00034794,2]
[311066066,1704891202386,-500.0,0.00034794,2]
[311066067,1704891202402,-895.94,0.00034794,2]
[311066068,1704891202418,-1856.22,0.00034794,2]
[311066069,1704891202434,-1480.74,0.00034794,2]
[311066070,1704891202450,-500.0,0.00034794,2]
[311066071,1704891202466,-776.38,0.00034794,2]
[311066072,1704891202483,-1298.12,0.00034794,2]
[311066073,1704891202498,-333.27,0.00034794,2]
[311066074,1704891202515,-1188.98,0.00034794,2]
[311066075,1704891202532,-791.87,0.00034794,2]
[311066076,1704891202548,-700.71,0.00034794,2]
[311066077,1704891202566,-577.69,0.00034794,2]
[311066078,1704891202581,-682.9,0.00034794,2]
[311066079,1704891202598,-923.76,0.00034794,2]
[311066080,1704891202614,-1290.28,0.00034794,2]
[311066081,1704891202632,-672.12,0.00034794,2]
[311066082,1704891202647,-694.02,0.00034794,2]
[311066083,1704891202663,-751.24,0.00034794,2]
[311066084,1704891202679,-1037.2,0.00034794,2]
[311066085,1704891202696,-791.74,0.00034794,2]
[311066086,1704891202711,-2135.41,0.00034794,2]
[311066087,1704891202730,-630.74,0.00034794,2]
[311066088,1704891202744,-500.0,0.00034794,2]
[311066089,1704891202759,-500.0,0.00034794,2]
[311066090,1704891202774,-1065.89,0.00034794,2]
[311066091,1704891202788,-1611.31,0.00034794,2]
[311066092,1704891202803,-500.0,0.00034794,2]
[311066093,1704891202817,-537.76,0.00034794,2]
[311066094,1704891202832,-1096.88,0.00034794,2]
[311066095,1704891202847,-1235.12,0.00034794,2]
[311066096,1704891202863,-508.12,0.00034794,2]
[311066097,1704891202877,-1351.54,0.00034794,2]
[311066098,1704891202892,-1332.96,0.00034794,2]
[311066099,1704891202907,-500.0,0.00034794,2]
[311066100,1704891202923,-500.0,0.00034794,2]
[311066101,1704891202938,-500.0,0.00034794,2]
[311066102,1704891202953,-525.51,0.00034794,2]
[311066103,1704891202969,-2153.22,0.00034794,2]
[311066104,1704891202985,-894.32,0.00034794,2]
[311066105,1704891203000,-1551.48,0.00034794,2]
[311066106,1704891203017,-551.86,0.00034794,2]
[311066107,1704891203032,-1823.35,0.00034794,2]
[311066108,1704891203052,-656.22,0.00034794,2]
[311066109,1704891203070,-903.93,0.00034794,2]
[311066110,1704891203088,-784.54,0.00034794,2]
[311066111,1704891203105,-1466.91,0.00034794,2]
[311066112,1704891203123,-1006.56,0.00034794,2]
[311066113,1704891203141,-1655.17,0.00034794,2]
[311066114,1704891203158,-3133.81,0.00034794,2]
[311066115,1704891203176,-761.32,0.00034794,2]
[311066116,1704891203195,-366.25879982,0.00034794,2]
[311066117,1704891203211,-1170.77,0.00034794,2]
[311066118,1704891203228,-533.08,0.00034794,2]
[311066119,1704891203244,-1368.59,0.00034794,2]
[311066120,1704891203261,-661.49,0.00034794,2]
[311066121,1704891203276,-1618.49,0.00034794,2]
[311066122,1704891203293,-500.0,0.00034794,2]
[311066123,1704891203309,-8919.11,0.00034794,2]
[311066124,1704891203325,-696.22,0.00034794,2]
[311066125,1704891203340,-813.18,0.00034794,2]
[311066126,1704891203357,-916.52,0.00034794,2]
[311066127,1704891203374,-484.51,0.00034794,2]
[311066128,1704891203390,-1010.96,0.00034794,2]
[311066129,1704891203406,-669.44,0.00034794,2]
[311066130,1704891203422,-895.64,0.00034794,2]
[311066131,1704891203438,-5719.09,0.00034794,2]
[311066132,1704891203454,-323.98503485,0.00034794,2]
[311066133,1704891203473,-3241.68,0.00034794,2]
[311066134,1704891203488,-1654.81,0.00034794,2]
[311066135,1704891203505,-2147.06,0.00034794,2]
[311066136,1704891203520,-4583.07,0.00034794,2]
[311066137,1704891203534,-4104.47,0.00034794,2]
[311066138,1704891203549,-1135.8,0.00034794,2]
[311066139,1704891203566,-4864.49,0.00034794,2]
[311066140,1704891203582,-1172.6,0.00034794,2]
[311066141,1704891203597,-1306.53,0.00034794,2]
[311066142,1704891203613,-605.42,0.00034794,2]
[311066143,1704891203629,-613.66,0.00034794,2]
[311066144,1704891203643,-3152.91,0.00034794,2]
[311066145,1704891203658,-1839.88,0.00034794,2]
[311066146,1704891203673,-848.46,0.00034794,2]
[311066147,1704891203689,-3087.19,0.00034794,2]
[311066148,1704891203705,-1217.95,0.00034794,2]
[311066149,1704891203721,-1243.05,0.00034794,2]
[311066150,1704891203736,-1107.32,0.00034794,2]
[311066151,1704891203752,-1973.9,0.00034794,2]
[311066152,1704891203769,-500.0,0.00034794,2]
[311066153,1704891203786,-500.0,0.00034794,2]
[311066154,1704891203802,-998.38,0.00034794,2]
[311066155,1704891203817,-1702.03,0.00034794,2]
[311066156,1704891203832,-515.72,0.00034794,2]
[311066157,1704891203848,-3061.74,0.00034794,2]
[311066158,1704891203864,-1068.18,0.00034794,2]
[311066159,1704891203881,-996.01,0.00034794,2]
[311066160,1704891203897,-3064.76,0.00034794,2]
[311066161,1704891203913,-1153.97,0.00034794,2]
[311066162,1704891203929,-6469.31,0.00034794,2]
[311066163,1704891203944,-500.0,0.00034794,2]
[311066164,1704891203960,-20572.41,0.00034794,2]
[311066165,1704891203978,-508.77,0.00034794,2]
[311066166,1704891203994,-1211.96,0.00034794,2]
[311066167,1704891204010,-876.85,0.00034794,2]
[311066168,1704891204025,-8935.6,0.00034794,2]
[311066169,1704891204040,-749.11,0.00034794,2]
[311066170,1704891204062,-1516.45,0.00034794,2]
[311066171,1704891204077,-835.36,0.00034794,2]
[311066172,1704891204092,-3428.01,0.00034794,2]
[311066173,1704891204107,-51777.21,0.00034794,2]
[311066174,1704891204123,-1411.74,0.00034794,2]
[311066175,1704891204138,-2414.62,0.00034794,2]
[311066176,1704891204152,-500.0,0.00034794,2]
[311066177,1704891204676,-28702.52,0.00034794,2]
[311066178,1704891204697,-1449.33,0.00034794,2]
[311066179,1704891204709,-272.80060032,0.00034794,2]
[311066180,1704891204720,-729.81,0.00034794,2]
[311066181,1704891204729,-1741.33,0.00034794,2]
[311066182,1704891204738,-18242.51,0.00034794,2]
[311066183,1704891204747,-982.47,0.00034794,2]
[311066184,1704891204757,-1198.42,0.00034794,2]
[311066185,1704891204768,-3044.12,0.00034794,2]
[311066186,1704891204778,-7322.32,0.00034794,2]
[311066187,1704891204787,-669.65,0.00034794,2]
[311066188,1704891204797,-883.98,0.00034794,2]
[311066189,1704891204807,-936.43,0.00034794,2]
[311066190,1704891204816,-500.0,0.00034794,2]
[311066191,1704891204826,-1931.34,0.00034794,2]
[311066192,1704891204835,-5311.52,0.00034794,2]
[311066193,1704891204845,-591.04,0.00034794,2]
[311066194,1704891204854,-596.34,0.00034794,2]
[311066195,1704891204863,-1716.44,0.00034794,2]
[311066196,1704891204872,-756.46,0.00034794,2]
[311066197,1704891204881,-1935.34,0.00034794,2]
[311066198,1704891204891,-630.3,0.00034794,2]
[311066199,1704891204901,-896.69,0.00034794,2]
[311066200,1704891204911,-11436.48,0.00034794,2]
[311066201,1704891204921,-1335.68,0.00034794,2]
[311066202,1704891204930,-5273.56,0.00034794,2]
[311066203,1704891204939,-7205.25,0.00034794,2]
[311066204,1704891204948,-738.84,0.00034794,2]
[311066205,1704891204957,-1192.7,0.00034794,2]
[311066206,1704891204967,-962.89,0.00034794,2]
[311066207,1704891204978,-717.02,0.00034794,2]
[311066208,1704891204987,-1285.43,0.00034794,2]
[311066209,1704891204997,-6876.74,0.00034794,2]
[311066210,1704891205006,-1732.97,0.00034794,2]
[311066211,1704891205016,-2245.33,0.00034794,2]
[311066212,1704891205025,-1567.49,0.00034794,2]
[311066213,1704891205035,-790.0,0.00034794,2]
[311066214,1704891205045,-2499.19,0.00034794,2]
[311066215,1704891205055,-932.57,0.00034794,2]
[311066216,1704891205065,-6606.78,0.00034794,2]
[311066217,1704891205075,-2921.42,0.00034794,2]
[311066218,1704891205085,-783.63,0.00034794,2]
[311066219,1704891205095,-4128.32,0.00034794,2]
[311066220,1704891205105,-500.0,0.00034794,2]
[311066221,1704891205114,-7057.36,0.00034794,2]
[311066222,1704891205124,-682.44,0.00034794,2]
[311066223,1704891205134,-1293.22,0.00034794,2]
[311066224,1704891205144,-1047.14,0.00034794,2]
[311066225,1704891205153,-3328.34,0.00034794,2]
[311066226,1704891205163,-2896.37,0.00034794,2]
[311066227,1704891205173,-668.72,0.00034794,2]
[311066228,1704891205183,-3025.67,0.00034794,2]
[311066229,1704891205192,-1350.56,0.00034794,2]
[311066230,1704891205202,-395.39116575,0.00034794,2]
[311066231,1704891205212,-2341.12,0.00034794,2]
[311066232,1704891205222,-953.47,0.00034794,2]
[311066233,1704891205232,-2098.62,0.00034794,2]
[311066234,1704891205242,-703.2,0.00034794,2]
[311066235,1704891205252,-1930.74,0.00034794,2]
[311066236,1704891205262,-5339.67,0.00034794,2]
[311066237,1704891205273,-503.67,0.00034794,2]
[311066238,1704891205283,-4486.53,0.00034794,2]
[311066239,1704891205294,-2153.92,0.00034794,2]
[311066240,1704891205304,-1333.7,0.00034794,2]
[311066241,1704891205314,-1093.38,0.00034794,2]
[311066242,1704891205324,-3990.83,0.00034794,2]
[311066243,1704891205335,-843.02,0.00034794,2]
[311066244,1704891205345,-3222.77,0.00034794,2]
[311066245,1704891205355,-915.67,0.00034794,2]
[311066246,1704891205365,-500.0,0.00034794,2]
[311066247,1704891205375,-6104.89,0.00034794,2]
[311066248,1704891205384,-723.37,0.00034794,2]
[311066249,1704891205393,-1149.9,0.00034794,2]
[311066250,1704891205403,-5798.03,0.00034794,2]
[311066251,1704891205413,-4625.49,0.00034794,2]
[311066252,1704891205425,-550.5,0.00034794,2]
[311066253,1704891205434,-13391.47,0.00034794,2]
[311066254,1704891205444,-1882.58,0.00034794,2]
[311066255,1704891205454,-1438.47,0.00034794,2]
[311066256,1704891205464,-3391.89,0.00034794,2]
[311066257,1704891205476,-17056.02,0.00034794,2]
[311066258,1704891205486,-1223.46,0.00034794,2]
[311066259,1704891205495,-1903.64,0.00034794,2]
[311066260,1704891205504,-535.17,0.00034794,2]
[311066261,1704891205513,-1447.74,0.00034794,2]
[311066262,1704891205523,-500.0,0.00034794,2]
[311066263,1704891205532,-903.74,0.00034794,2]
[311066264,1704891205542,-1181.32,0.00034794,2]
[311066265,1704891205552,-897.9,0.00034794,2]
[311066266,1704891205562,-3416.68,0.00034794,2]
[311066267,1704891205572,-1323.99,0.00034794,2]
[311066268,1704891205582,-605.66,0.00034794,2]
[311066269,1704891205591,-2647.12,0.00034794,2]
[311066270,1704891205601,-1240.59,0.00034794,2]
[311066271,1704891205611,-1066.0,0.00034794,2]
[311066272,1704891205621,-3383.46,0.00034794,2]
[311066273,1704891205630,-1858.38,0.00034794,2]
[311066274,1704891205640,-556.19,0.00034794,2]
[311066275,1704891205650,-2765.04,0.00034794,2]
[311066276,1704891205659,-656.06,0.00034794,2]
[311066277,1704891205669,-1414.02,0.00034794,2]
[311066278,1704891205678,-1721.84,0.00034794,2]
[311066279,1704891205689,-6948.27,0.00034794,2]
[311066280,1704891205700,-500.0,0.00034794,2]
[311066281,1704891205710,-787.87,0.00034794,2]
[311066282,1704891205720,-1113.97,0.00034794,2]
[311066283,1704891205735,-1850.44,0.00034794,2]
[311066284,1704891205746,-875.41,0.00034794,2]
[311066285,1704891205756,-622.97,0.00034794,2]
[311066286,1704891205766,-975.55,0.00034794,2]
[311066287,1704891205777,-13325.5,0.00034794,2]
[311066288,1704891205786,-2699.57,0.00034794,2]